[Event "GrandPrix_29.05"]
[Site "Chess.com"]
[Date "2020.05.29"]
[Round "5"]
[White "Frozygul"]
[Black "LANCELOT96"]
[Result "1/2-1/2"]
[WhiteElo "2138"]
[BlackElo "2051"]
[TimeControl "600+2"]
[EndTime "11:18:04 PDT"]
[Termination "Game drawn by repetition"]

1. d4 {[%clk 0:10:01.9]} 1... d5 {[%clk 0:10:00.9]} 2. Bf4 {[%clk 0:10:02.7]}
2... Nf6 {[%clk 0:10:01.5]} 3. e3 {[%clk 0:10:04]} 3... Bf5 {[%clk 0:10:01.7]}
4. c4 {[%clk 0:10:04.3]} 4... c6 {[%clk 0:10:03]} 5. Qb3 {[%clk 0:10:04.7]} 5...
Qb6 {[%clk 0:10:02.7]} 6. c5 {[%clk 0:10:06.3]} 6... Qxb3 {[%clk 0:10:03.6]} 7.
axb3 {[%clk 0:10:08.2]} 7... Nbd7 {[%clk 0:10:04.5]} 8. b4 {[%clk 0:10:03.7]}
8... Bxb1 {[%clk 0:10:05]} 9. Rxb1 {[%clk 0:10:05]} 9... a6 {[%clk 0:10:06.3]}
10. Nf3 {[%clk 0:09:58.8]} 10... e6 {[%clk 0:10:07.3]} 11. Ra1 {[%clk
0:09:44.1]} 11... Rc8 {[%clk 0:10:07.7]} 12. Be2 {[%clk 0:09:31.1]} 12... Be7
{[%clk 0:10:08.1]} 13. O-O {[%clk 0:09:30]} 13... Nh5 {[%clk 0:09:56.8]} 14. Ne5
{[%clk 0:09:27.1]} 14... Nxf4 {[%clk 0:09:39.3]} 15. exf4 {[%clk 0:09:29]} 15...
Nf8 {[%clk 0:09:29.6]} 16. Rfe1 {[%clk 0:09:08.3]} 16... Bf6 {[%clk 0:09:30.7]}
17. Ra3 {[%clk 0:09:03.6]} 17... Bxe5 {[%clk 0:09:31.7]} 18. fxe5 {[%clk
0:09:04.9]} 18... Nd7 {[%clk 0:09:32.1]} 19. Rg3 {[%clk 0:09:01.1]} 19... O-O
{[%clk 0:09:32.8]} 20. f4 {[%clk 0:08:55.1]} 20... f5 {[%clk 0:09:04.8]} 21. Ra3
{[%clk 0:08:13.9]} 21... Kf7 {[%clk 0:09:02]} 22. Kf2 {[%clk 0:08:09.6]} 22...
Rg8 {[%clk 0:09:02]} 23. h4 {[%clk 0:07:46.5]} 23... g6 {[%clk 0:08:58.1]} 24.
Rh1 {[%clk 0:07:36.4]} 24... Ke7 {[%clk 0:08:42.7]} 25. Rg3 {[%clk 0:07:17.1]}
25... h5 {[%clk 0:08:35]} 26. Ra3 {[%clk 0:06:59.9]} 26... Kf7 {[%clk
0:08:33.4]} 27. Rc1 {[%clk 0:06:48.4]} 27... Ke7 {[%clk 0:08:34.3]} 28. Ke3
{[%clk 0:06:37.3]} 28... Kf7 {[%clk 0:08:35.5]} 29. Kd2 {[%clk 0:06:36.8]} 29...
Ke7 {[%clk 0:08:36.8]} 30. Ke3 {[%clk 0:05:09.9]} 30... Kf7 {[%clk 0:08:36.5]}
31. Kd2 {[%clk 0:05:08.5]} 31... Ke7 {[%clk 0:08:37.9]} 32. Ke3 {[%clk
0:05:09.2]} 1/2-1/2

[Event "GrandPrix_29.05"]
[Site "Chess.com"]
[Date "2020.05.29"]
[Round "5"]
[White "Spartakus1975"]
[Black "AmilAbbasov"]
[Result "1-0"]
[WhiteElo "2525"]
[BlackElo "2257"]
[TimeControl "600+2"]
[EndTime "11:18:25 PDT"]
[Termination "Spartakus1975 won by resignation"]

1. e4 {[%clk 0:09:59.5]} 1... c5 {[%clk 0:10:00.1]} 2. c3 {[%clk 0:09:59.1]}
2... d5 {[%clk 0:09:58.4]} 3. exd5 {[%clk 0:09:59.3]} 3... Qxd5 {[%clk
0:10:00.3]} 4. d4 {[%clk 0:09:59.1]} 4... cxd4 {[%clk 0:10:00.8]} 5. cxd4 {[%clk
0:09:59.2]} 5... Nc6 {[%clk 0:10:01.5]} 6. Nf3 {[%clk 0:09:59.2]} 6... e5 {[%clk
0:10:01.2]} 7. Nc3 {[%clk 0:09:58.2]} 7... Bb4 {[%clk 0:10:00.3]} 8. Be2 {[%clk
0:09:42.7]} 8... e4 {[%clk 0:09:33.7]} 9. O-O {[%clk 0:09:40.2]} 9... Bxc3
{[%clk 0:09:34.1]} 10. bxc3 {[%clk 0:09:40.4]} 10... Nf6 {[%clk 0:08:52.9]} 11.
Ne1 {[%clk 0:08:57.3]} 11... O-O {[%clk 0:08:49.1]} 12. Nc2 {[%clk 0:08:56.2]}
12... Be6 {[%clk 0:08:44]} 13. c4 {[%clk 0:08:49.8]} 13... Qd8 {[%clk
0:07:50.1]} 14. d5 {[%clk 0:08:47.7]} 14... Bxd5 {[%clk 0:07:41.4]} 15. cxd5
{[%clk 0:08:47.7]} 15... Nxd5 {[%clk 0:07:43.3]} 16. Bc4 {[%clk 0:08:31.5]}
16... Nb6 {[%clk 0:07:21.4]} 17. Bb3 {[%clk 0:08:25.3]} 17... Qh4 {[%clk
0:07:03.8]} 18. Bb2 {[%clk 0:08:09.9]} 18... Rad8 {[%clk 0:06:57.8]} 19. Qe2
{[%clk 0:08:06.6]} 19... Rfe8 {[%clk 0:06:52]} 20. Ne3 {[%clk 0:08:04.9]} 20...
Nb4 {[%clk 0:06:44.7]} 21. Nf5 {[%clk 0:07:49.6]} 21... Qg5 {[%clk 0:06:44.7]}
22. Nxg7 {[%clk 0:07:45.3]} 22... Rd2 {[%clk 0:06:20]} 23. Qe3 {[%clk 0:07:45]}
23... Qxe3 {[%clk 0:05:18]} 24. fxe3 {[%clk 0:07:42.4]} 1-0

[Event "GrandPrix_29.05"]
[Site "Chess.com"]
[Date "2020.05.29"]
[Round "5"]
[White "Dyadya81"]
[Black "StephenDedalus83"]
[Result "1-0"]
[WhiteElo "2343"]
[BlackElo "2091"]
[TimeControl "600+2"]
[EndTime "11:19:16 PDT"]
[Termination "Dyadya81 won by resignation"]

1. e4 {[%clk 0:10:00]} 1... c5 {[%clk 0:09:59.4]} 2. Nf3 {[%clk 0:09:57.1]} 2...
Nc6 {[%clk 0:09:59.1]} 3. Bb5 {[%clk 0:09:55.4]} 3... g6 {[%clk 0:09:59.1]} 4.
Bxc6 {[%clk 0:09:55.8]} 4... dxc6 {[%clk 0:10:01]} 5. d3 {[%clk 0:09:56.4]} 5...
Bg7 {[%clk 0:10:02.5]} 6. Nc3 {[%clk 0:09:57.1]} 6... e5 {[%clk 0:09:58.7]} 7.
Be3 {[%clk 0:09:56.6]} 7... Qe7 {[%clk 0:09:58.8]} 8. a3 {[%clk 0:09:53.3]} 8...
Nf6 {[%clk 0:09:56.7]} 9. h3 {[%clk 0:09:34]} 9... Nd7 {[%clk 0:09:50.3]} 10.
Qd2 {[%clk 0:09:30.6]} 10... Nf8 {[%clk 0:09:41.8]} 11. Na4 {[%clk 0:09:15]}
11... b6 {[%clk 0:09:30.4]} 12. b4 {[%clk 0:09:14.6]} 12... Ne6 {[%clk
0:09:30.4]} 13. O-O {[%clk 0:09:05.9]} 13... O-O {[%clk 0:09:25.8]} 14. bxc5
{[%clk 0:09:05.9]} 14... b5 {[%clk 0:09:25.9]} 15. Nb2 {[%clk 0:09:07.4]} 15...
f5 {[%clk 0:09:22.7]} 16. Bh6 {[%clk 0:08:55.4]} 16... fxe4 {[%clk 0:08:30.9]}
17. Bxg7 {[%clk 0:08:47.3]} 17... Qxg7 {[%clk 0:08:02.9]} 18. Ng5 {[%clk
0:08:43.3]} 18... Nxg5 {[%clk 0:07:56.6]} 19. Qxg5 {[%clk 0:08:45.2]} 19... exd3
{[%clk 0:07:55.5]} 20. Nxd3 {[%clk 0:08:44]} 20... Bf5 {[%clk 0:07:56.3]} 21.
Rfe1 {[%clk 0:08:35.6]} 21... e4 {[%clk 0:07:54.2]} 22. Nf4 {[%clk 0:08:15.6]}
22... Rae8 {[%clk 0:07:26.6]} 23. Rad1 {[%clk 0:08:10.7]} 23... Re5 {[%clk
0:07:25.5]} 24. Re3 {[%clk 0:07:47.1]} 24... h6 {[%clk 0:07:17.3]} 25. Qg3
{[%clk 0:07:43.2]} 25... Rxc5 {[%clk 0:07:18]} 26. Rd6 {[%clk 0:07:42.4]} 26...
Rf6 {[%clk 0:07:06.6]} 27. Nh5 {[%clk 0:07:37.2]} 27... Rxd6 {[%clk 0:06:54.3]}
28. Nxg7 {[%clk 0:07:27.8]} 28... Rd1+ {[%clk 0:06:55]} 29. Kh2 {[%clk 0:07:29]}
29... Kxg7 {[%clk 0:06:56.1]} 30. Rc3 {[%clk 0:07:21.4]} 30... Rcd5 {[%clk
0:06:18.6]} 31. Rxc6 {[%clk 0:07:15.3]} 31... Rd7 {[%clk 0:06:18.3]} 32. Qc3+
{[%clk 0:07:10]} 32... Kh7 {[%clk 0:06:17.7]} 33. g4 {[%clk 0:07:05.3]} 33...
R7d2 {[%clk 0:06:15.6]} 34. Kg2 {[%clk 0:06:51.4]} 34... e3 {[%clk 0:06:09.7]}
35. Qxe3 {[%clk 0:06:44.2]} 1-0

[Event "GrandPrix_29.05"]
[Site "Chess.com"]
[Date "2020.05.29"]
[Round "5"]
[White "SavelijTartakover"]
[Black "Zhuu96"]
[Result "1/2-1/2"]
[WhiteElo "2446"]
[BlackElo "2564"]
[TimeControl "600+2"]
[EndTime "11:19:31 PDT"]
[Termination "Game drawn by repetition"]

1. d4 {[%clk 0:10:01.9]} 1... Nf6 {[%clk 0:09:59.5]} 2. Bg5 {[%clk 0:10:02.1]}
2... c5 {[%clk 0:09:48.2]} 3. Bxf6 {[%clk 0:10:02]} 3... exf6 {[%clk 0:09:45.9]}
4. c3 {[%clk 0:09:59.9]} 4... d5 {[%clk 0:09:36.2]} 5. dxc5 {[%clk 0:09:53]}
5... Bxc5 {[%clk 0:09:36.9]} 6. e3 {[%clk 0:09:53.7]} 6... O-O {[%clk
0:09:37.5]} 7. Nf3 {[%clk 0:09:54.5]} 7... Nc6 {[%clk 0:09:38.2]} 8. Be2 {[%clk
0:09:55.3]} 8... b6 {[%clk 0:09:15.3]} 9. Nbd2 {[%clk 0:09:52.4]} 9... Bb7
{[%clk 0:09:14.7]} 10. Nb3 {[%clk 0:09:51.6]} 10... a5 {[%clk 0:09:07.4]} 11. a3
{[%clk 0:09:40.9]} 11... Qc7 {[%clk 0:09:00.8]} 12. O-O {[%clk 0:09:39.1]} 12...
a4 {[%clk 0:08:49.4]} 13. Nbd4 {[%clk 0:09:36]} 13... Ne5 {[%clk 0:08:45.8]} 14.
Bb5 {[%clk 0:09:14.9]} 14... Nxf3+ {[%clk 0:08:22.3]} 15. Nxf3 {[%clk
0:08:58.8]} 15... Bc6 {[%clk 0:08:22.6]} 16. Bxc6 {[%clk 0:08:53.2]} 16... Qxc6
{[%clk 0:08:23.5]} 17. Qd3 {[%clk 0:08:54.1]} 17... Rfd8 {[%clk 0:08:23.1]} 18.
Rfd1 {[%clk 0:08:53.4]} 18... g6 {[%clk 0:08:16.2]} 19. Rd2 {[%clk 0:08:53.5]}
19... Rd7 {[%clk 0:08:15]} 20. Rad1 {[%clk 0:08:52.9]} 20... Rad8 {[%clk
0:08:15.9]} 21. Nd4 {[%clk 0:08:47.9]} 21... Qa8 {[%clk 0:08:05.9]} 22. g3
{[%clk 0:08:43.9]} 22... h5 {[%clk 0:08:03.7]} 23. Qe2 {[%clk 0:08:35.9]} 23...
Bd6 {[%clk 0:07:58.4]} 24. Qf3 {[%clk 0:08:25]} 24... Be5 {[%clk 0:07:57.8]} 25.
Nc2 {[%clk 0:08:14.2]} 25... Qc6 {[%clk 0:07:01.3]} 26. Nb4 {[%clk 0:08:10.4]}
26... Qb5 {[%clk 0:06:57.7]} 27. Rxd5 {[%clk 0:07:40.6]} 27... Rxd5 {[%clk
0:06:57.5]} 28. Rxd5 {[%clk 0:07:41.3]} 28... Rxd5 {[%clk 0:06:58.7]} 29. Qxd5
{[%clk 0:07:38.8]} 29... Qe2 {[%clk 0:06:59.5]} 30. Nd3 {[%clk 0:07:25.6]} 30...
h4 {[%clk 0:06:57.4]} 31. gxh4 {[%clk 0:06:23.1]} 31... Qg4+ {[%clk 0:06:54.2]}
32. Qg2 {[%clk 0:05:58.9]} 32... Qd1+ {[%clk 0:06:42.1]} 33. Qf1 {[%clk
0:05:59.6]} 33... Qg4+ {[%clk 0:06:42.9]} 34. Qg2 {[%clk 0:05:56.2]} 34... Qd1+
{[%clk 0:06:43.7]} 35. Qf1 {[%clk 0:05:57]} 35... Qg4+ {[%clk 0:06:44.7]} 36.
Qg2 {[%clk 0:05:57.8]} 1/2-1/2

[Event "GrandPrix_29.05"]
[Site "Chess.com"]
[Date "2020.05.29"]
[Round "5"]
[White "Nuvas"]
[Black "RitvarsReimanis"]
[Result "1-0"]
[WhiteElo "2250"]
[BlackElo "2076"]
[TimeControl "600+2"]
[EndTime "11:20:28 PDT"]
[Termination "Nuvas won by resignation"]

1. d4 {[%clk 0:10:01.9]} 1... Nf6 {[%clk 0:10:00.3]} 2. c4 {[%clk 0:10:02.3]}
2... e6 {[%clk 0:10:01.2]} 3. Nc3 {[%clk 0:10:03.2]} 3... d5 {[%clk 0:10:01.6]}
4. cxd5 {[%clk 0:10:04.2]} 4... exd5 {[%clk 0:10:03.5]} 5. Bg5 {[%clk 0:10:05]}
5... Be7 {[%clk 0:10:04.9]} 6. e3 {[%clk 0:10:06.1]} 6... Nbd7 {[%clk
0:10:06.1]} 7. Bd3 {[%clk 0:10:04.5]} 7... c6 {[%clk 0:10:07.3]} 8. Nge2 {[%clk
0:10:04.7]} 8... O-O {[%clk 0:10:08.8]} 9. Qc2 {[%clk 0:09:57]} 9... Re8 {[%clk
0:10:09.9]} 10. O-O {[%clk 0:09:57.1]} 10... Nf8 {[%clk 0:10:11.2]} 11. f3
{[%clk 0:09:57.8]} 11... Ng6 {[%clk 0:10:12]} 12. Rae1 {[%clk 0:09:15.5]} 12...
Be6 {[%clk 0:10:11.4]} 13. Kh1 {[%clk 0:08:32.4]} 13... Rc8 {[%clk 0:10:10.8]}
14. Qd2 {[%clk 0:07:52.6]} 14... Ne4 {[%clk 0:09:46.9]} 15. Nxe4 {[%clk
0:07:51]} 15... Bxg5 {[%clk 0:09:44.9]} 16. Nxg5 {[%clk 0:07:52.3]} 16... Qxg5
{[%clk 0:09:45.6]} 17. f4 {[%clk 0:07:53.7]} 17... Qg4 {[%clk 0:09:14.6]} 18. h3
{[%clk 0:07:54.4]} 18... Qh4 {[%clk 0:09:07.9]} 19. f5 {[%clk 0:07:55.3]} 19...
Bd7 {[%clk 0:08:59.6]} 20. fxg6 {[%clk 0:07:56.1]} 20... hxg6 {[%clk 0:09:01]}
21. Rf4 {[%clk 0:07:43.1]} 21... Qh6 {[%clk 0:09:00.3]} 22. Ng1 {[%clk
0:06:40.9]} 22... g5 {[%clk 0:08:55.5]} 23. Rff1 {[%clk 0:06:27.1]} 23... g6
{[%clk 0:08:55.2]} 24. e4 {[%clk 0:06:25]} 24... dxe4 {[%clk 0:08:55.2]} 25.
Bxe4 {[%clk 0:06:22.6]} 25... Be6 {[%clk 0:08:44.6]} 26. Nf3 {[%clk 0:06:07.7]}
26... f6 {[%clk 0:08:38.5]} 27. Nh2 {[%clk 0:06:08.8]} 27... Kg7 {[%clk
0:08:34.9]} 28. b3 {[%clk 0:05:55.7]} 28... Rcd8 {[%clk 0:08:34.9]} 29. Bf3
{[%clk 0:05:32]} 29... Qh4 {[%clk 0:08:34.9]} 30. Re4 {[%clk 0:05:20.4]} 30...
Qg3 {[%clk 0:08:34.2]} 31. Rfe1 {[%clk 0:05:15.2]} 31... Rd6 {[%clk 0:08:33]}
32. Nf1 {[%clk 0:05:13.7]} 32... Qh4 {[%clk 0:08:12.5]} 33. Rxh4 {[%clk
0:05:14]} 33... gxh4 {[%clk 0:08:14.4]} 34. Qb4 {[%clk 0:05:06.6]} 34... Rd7
{[%clk 0:08:14.9]} 35. Nd2 {[%clk 0:04:51.1]} 35... a5 {[%clk 0:08:06.4]} 36.
Qc5 {[%clk 0:04:45.9]} 36... Kf7 {[%clk 0:07:58.7]} 37. Nc4 {[%clk 0:04:43.3]}
37... Red8 {[%clk 0:07:59.6]} 38. Bg4 {[%clk 0:04:14.3]} 38... Bxg4 {[%clk
0:07:53.2]} 39. hxg4 {[%clk 0:04:15.3]} 39... b5 {[%clk 0:07:51.9]} 40. Nb6
{[%clk 0:04:13.7]} 1-0

[Event "GrandPrix_29.05"]
[Site "Chess.com"]
[Date "2020.05.29"]
[Round "5"]
[White "kosmeg"]
[Black "Karinaa87"]
[Result "1-0"]
[WhiteElo "2042"]
[BlackElo "1787"]
[TimeControl "600+2"]
[EndTime "11:20:28 PDT"]
[Termination "kosmeg won by resignation"]

1. d4 {[%clk 0:10:01.9]} 1... d6 {[%clk 0:09:58.4]} 2. e4 {[%clk 0:10:01.6]}
2... Nf6 {[%clk 0:09:58.5]} 3. f3 {[%clk 0:09:56.8]} 3... Nbd7 {[%clk
0:09:52.5]} 4. c4 {[%clk 0:09:54.9]} 4... e5 {[%clk 0:09:51.7]} 5. Ne2 {[%clk
0:09:53.8]} 5... Be7 {[%clk 0:09:50.1]} 6. Nbc3 {[%clk 0:09:52.8]} 6... O-O
{[%clk 0:09:50.7]} 7. Be3 {[%clk 0:09:48]} 7... c6 {[%clk 0:09:50.6]} 8. Qd2
{[%clk 0:09:14.7]} 8... a6 {[%clk 0:09:46.7]} 9. g4 {[%clk 0:08:45.6]} 9... b5
{[%clk 0:09:44.2]} 10. Ng3 {[%clk 0:08:42.2]} 10... Nb6 {[%clk 0:09:20.8]} 11.
g5 {[%clk 0:07:39.2]} 11... Nfd7 {[%clk 0:08:59.2]} 12. Nf5 {[%clk 0:06:54.3]}
12... Nxc4 {[%clk 0:08:47.3]} 13. Bxc4 {[%clk 0:06:54.4]} 13... bxc4 {[%clk
0:08:47.9]} 14. d5 {[%clk 0:06:25.6]} 14... c5 {[%clk 0:08:38.6]} 15. O-O-O
{[%clk 0:05:53.4]} 15... Rb8 {[%clk 0:08:33.9]} 16. h4 {[%clk 0:05:51.6]} 16...
Re8 {[%clk 0:08:27.5]} 17. Rdg1 {[%clk 0:05:45.7]} 17... Nf8 {[%clk 0:08:25.6]}
18. Nxe7+ {[%clk 0:05:18.8]} 18... Qxe7 {[%clk 0:08:15.2]} 19. h5 {[%clk
0:05:20.3]} 19... Bd7 {[%clk 0:07:58.6]} 20. Qh2 {[%clk 0:05:07.8]} 20... Rb4
{[%clk 0:06:44.5]} 21. g6 {[%clk 0:05:06.9]} 21... fxg6 {[%clk 0:06:45]} 22.
hxg6 {[%clk 0:05:08.1]} 22... hxg6 {[%clk 0:06:45.4]} 23. Bg5 {[%clk 0:05:05.5]}
23... Kf7 {[%clk 0:06:23.7]} 24. f4 {[%clk 0:04:47.4]} 24... Reb8 {[%clk
0:06:11.6]} 25. Bxe7 {[%clk 0:04:43.9]} 25... Kxe7 {[%clk 0:06:12]} 26. fxe5
{[%clk 0:04:45.1]} 1-0

[Event "GrandPrix_29.05"]
[Site "Chess.com"]
[Date "2020.05.29"]
[Round "5"]
[White "Dolphin_2010"]
[Black "Sunerorlater"]
[Result "0-1"]
[WhiteElo "2092"]
[BlackElo "2322"]
[TimeControl "600+2"]
[EndTime "11:20:57 PDT"]
[Termination "Sunerorlater won by checkmate"]

1. e4 {[%clk 0:10:01.9]} 1... e5 {[%clk 0:09:59.5]} 2. Nf3 {[%clk 0:10:01.7]}
2... Nc6 {[%clk 0:10:00.5]} 3. d4 {[%clk 0:10:02.2]} 3... exd4 {[%clk
0:10:00.9]} 4. Bc4 {[%clk 0:10:03.1]} 4... Bc5 {[%clk 0:10:00.7]} 5. c3 {[%clk
0:10:03.4]} 5... Nf6 {[%clk 0:10:00.8]} 6. e5 {[%clk 0:10:02.8]} 6... d5 {[%clk
0:10:00.7]} 7. Bb5 {[%clk 0:10:03.1]} 7... Ne4 {[%clk 0:10:01.2]} 8. cxd4 {[%clk
0:10:03.4]} 8... Bb6 {[%clk 0:10:02.2]} 9. h3 {[%clk 0:09:57]} 9... O-O {[%clk
0:09:58.9]} 10. Bxc6 {[%clk 0:09:53.8]} 10... bxc6 {[%clk 0:09:58.8]} 11. Be3
{[%clk 0:09:48.2]} 11... f5 {[%clk 0:09:39.3]} 12. Qc1 {[%clk 0:09:14.7]} 12...
Ba6 {[%clk 0:08:57.6]} 13. Qxc6 {[%clk 0:08:52.4]} 13... f4 {[%clk 0:08:51.4]}
14. Bc1 {[%clk 0:08:43]} 14... Rb8 {[%clk 0:08:33.9]} 15. Nc3 {[%clk 0:08:34.5]}
15... Bb7 {[%clk 0:08:02.4]} 16. Qa4 {[%clk 0:07:20.4]} 16... c5 {[%clk
0:08:02.1]} 17. O-O {[%clk 0:06:52.4]} 17... Kh8 {[%clk 0:07:54.8]} 18. Rd1
{[%clk 0:06:46.1]} 18... cxd4 {[%clk 0:07:39.7]} 19. Nxd4 {[%clk 0:06:40.8]}
19... Qh4 {[%clk 0:07:35.7]} 20. Rf1 {[%clk 0:05:56.7]} 20... Ng5 {[%clk
0:07:19.7]} 21. Nde2 {[%clk 0:04:54.6]} 21... d4 {[%clk 0:07:11]} 22. Nxd4
{[%clk 0:04:44.5]} 22... Nxh3+ {[%clk 0:06:42.1]} 23. Kh2 {[%clk 0:04:28.8]}
23... Nxf2+ {[%clk 0:06:18.8]} 24. Kg1 {[%clk 0:04:22.1]} 24... Nh3+ {[%clk
0:06:19.4]} 25. Kh2 {[%clk 0:04:17.9]} 25... Qg3+ {[%clk 0:06:19.1]} 26. Kh1
{[%clk 0:04:18.7]} 26... Qxg2# {[%clk 0:06:19.1]} 0-1

[Event "GrandPrix_29.05"]
[Site "Chess.com"]
[Date "2020.05.29"]
[Round "5"]
[White "TimofeevAr"]
[Black "MiroVlasenko"]
[Result "1/2-1/2"]
[WhiteElo "2544"]
[BlackElo "2604"]
[TimeControl "600+2"]
[EndTime "11:21:01 PDT"]
[Termination "Game drawn by agreement"]

1. c4 {[%clk 0:10:01.9]} 1... Nc6 {[%clk 0:09:59.2]} 2. Nc3 {[%clk 0:10:01.3]}
2... e5 {[%clk 0:10:00.2]} 3. e3 {[%clk 0:10:01.1]} 3... g6 {[%clk 0:09:47.7]}
4. b3 {[%clk 0:09:54.4]} 4... Bg7 {[%clk 0:09:46.2]} 5. Bb2 {[%clk 0:09:55.5]}
5... d6 {[%clk 0:09:41.2]} 6. d3 {[%clk 0:09:54]} 6... f5 {[%clk 0:09:38.6]} 7.
Be2 {[%clk 0:09:52.4]} 7... Nf6 {[%clk 0:09:38.3]} 8. Nf3 {[%clk 0:09:52.6]}
8... O-O {[%clk 0:09:35.8]} 9. Qd2 {[%clk 0:09:52.2]} 9... h6 {[%clk 0:09:26.1]}
10. O-O-O {[%clk 0:09:45.5]} 10... Be6 {[%clk 0:09:22.6]} 11. Kb1 {[%clk
0:09:45.7]} 11... Bf7 {[%clk 0:09:05.6]} 12. d4 {[%clk 0:09:34.1]} 12... e4
{[%clk 0:09:02.9]} 13. Ne1 {[%clk 0:09:34.3]} 13... a6 {[%clk 0:08:29.4]} 14. h3
{[%clk 0:09:31.8]} 14... Ne7 {[%clk 0:08:13.7]} 15. g4 {[%clk 0:09:30.1]} 15...
b5 {[%clk 0:08:10.4]} 16. gxf5 {[%clk 0:09:04.7]} 16... Nxf5 {[%clk 0:08:04.9]}
17. cxb5 {[%clk 0:09:05.4]} 17... axb5 {[%clk 0:07:57.7]} 18. Bxb5 {[%clk
0:09:06.2]} 18... Qb8 {[%clk 0:07:27.2]} 19. Nc2 {[%clk 0:09:03.2]} 19... Qb6
{[%clk 0:07:03.4]} 20. Rhg1 {[%clk 0:08:51.5]} 20... Rfb8 {[%clk 0:06:47.7]} 21.
d5 {[%clk 0:07:11.1]} 21... Nh4 {[%clk 0:06:26.9]} 22. Rg3 {[%clk 0:06:27.8]}
22... Nf3 {[%clk 0:06:01.1]} 23. Qe2 {[%clk 0:06:26.1]} 23... Nh5 {[%clk
0:05:43.6]} 24. Bc4 {[%clk 0:06:19.8]} 24... Nxg3 {[%clk 0:05:37.5]} 25. fxg3
{[%clk 0:06:20.8]} 25... Qa5 {[%clk 0:05:16.5]} 26. Nd4 {[%clk 0:06:20.2]} 26...
Nxd4 {[%clk 0:05:01]} 27. exd4 {[%clk 0:06:19.6]} 1/2-1/2

[Event "GrandPrix_29.05"]
[Site "Chess.com"]
[Date "2020.05.29"]
[Round "5"]
[White "WildBizon"]
[Black "SoltaniciR"]
[Result "1-0"]
[WhiteElo "2105"]
[BlackElo "2109"]
[TimeControl "600+2"]
[EndTime "11:21:13 PDT"]
[Termination "WildBizon won by resignation"]

1. e4 {[%clk 0:09:49.3]} 1... c5 {[%clk 0:10:00]} 2. Nf3 {[%clk 0:09:49.9]} 2...
d6 {[%clk 0:10:00.5]} 3. d4 {[%clk 0:09:49.7]} 3... cxd4 {[%clk 0:10:01.2]} 4.
Nxd4 {[%clk 0:09:51.6]} 4... Nf6 {[%clk 0:10:02]} 5. Nc3 {[%clk 0:09:53.3]} 5...
a6 {[%clk 0:10:02.8]} 6. h3 {[%clk 0:09:54.1]} 6... e6 {[%clk 0:10:00]} 7. g4
{[%clk 0:09:54.3]} 7... h6 {[%clk 0:10:00.5]} 8. Bg2 {[%clk 0:09:55]} 8... Nc6
{[%clk 0:10:01.3]} 9. Be3 {[%clk 0:09:56.2]} 9... Ne5 {[%clk 0:10:01.9]} 10. b3
{[%clk 0:09:55.1]} 10... g5 {[%clk 0:09:58.9]} 11. Qd2 {[%clk 0:09:48.7]} 11...
Bd7 {[%clk 0:09:56.5]} 12. f4 {[%clk 0:09:40.3]} 12... gxf4 {[%clk 0:09:56]} 13.
Bxf4 {[%clk 0:09:41.6]} 13... Rc8 {[%clk 0:09:55.4]} 14. O-O {[%clk 0:09:38.3]}
14... b5 {[%clk 0:07:45.7]} 15. Nce2 {[%clk 0:09:33]} 15... Ng6 {[%clk
0:04:59.8]} 16. Bg3 {[%clk 0:09:30.1]} 16... Be7 {[%clk 0:04:55]} 17. Kh1 {[%clk
0:09:17.9]} 17... Qb6 {[%clk 0:02:57.9]} 18. Rf2 {[%clk 0:09:09.5]} 18... O-O
{[%clk 0:02:12.7]} 19. Qxh6 {[%clk 0:08:49.7]} 19... Nh7 {[%clk 0:02:12.3]} 20.
Raf1 {[%clk 0:07:52.4]} 20... Bg5 {[%clk 0:02:12.4]} 21. Qh5 {[%clk 0:07:53.8]}
21... Be3 {[%clk 0:02:13.3]} 22. Rxf7 {[%clk 0:07:54.9]} 1-0

[Event "GrandPrix_29.05"]
[Site "Chess.com"]
[Date "2020.05.29"]
[Round "5"]
[White "Eltaj_Safarli"]
[Black "tacticthunder"]
[Result "1-0"]
[WhiteElo "2393"]
[BlackElo "2186"]
[TimeControl "600+2"]
[EndTime "11:21:20 PDT"]
[Termination "Eltaj_Safarli won by resignation"]

1. e4 {[%clk 0:10:01.9]} 1... c5 {[%clk 0:10:00.1]} 2. Nc3 {[%clk 0:10:02.2]}
2... e6 {[%clk 0:09:57.9]} 3. Nf3 {[%clk 0:10:02.6]} 3... Nc6 {[%clk 0:09:57.9]}
4. Bb5 {[%clk 0:10:03]} 4... Nge7 {[%clk 0:09:55.5]} 5. O-O {[%clk 0:10:03.7]}
5... a6 {[%clk 0:09:55.9]} 6. Bxc6 {[%clk 0:10:04.9]} 6... Nxc6 {[%clk
0:09:57.8]} 7. d4 {[%clk 0:10:06.5]} 7... cxd4 {[%clk 0:09:58.6]} 8. Nxd4 {[%clk
0:10:08.4]} 8... Qc7 {[%clk 0:09:55.9]} 9. Re1 {[%clk 0:10:02.3]} 9... Be7
{[%clk 0:09:32.9]} 10. Nxc6 {[%clk 0:09:59.9]} 10... Qxc6 {[%clk 0:09:26]} 11.
Nd5 {[%clk 0:07:13.9]} 11... Bd8 {[%clk 0:07:03.8]} 12. Qg4 {[%clk 0:06:57.5]}
12... Kf8 {[%clk 0:07:01.2]} 13. Nc3 {[%clk 0:06:36.6]} 13... d6 {[%clk
0:07:00]} 14. Bg5 {[%clk 0:06:30.6]} 14... Ba5 {[%clk 0:05:24.8]} 15. Rad1
{[%clk 0:06:20.3]} 15... f6 {[%clk 0:04:52.1]} 16. Bc1 {[%clk 0:06:08.8]} 16...
Kf7 {[%clk 0:03:56.4]} 17. Qh5+ {[%clk 0:06:02.5]} 17... g6 {[%clk 0:03:49.3]}
18. Qxa5 {[%clk 0:06:01.2]} 1-0

[Event "GrandPrix_29.05"]
[Site "Chess.com"]
[Date "2020.05.29"]
[Round "5"]
[White "ENajer77"]
[Black "Alex_Molchanov"]
[Result "1-0"]
[WhiteElo "2108"]
[BlackElo "2040"]
[TimeControl "600+2"]
[EndTime "11:21:35 PDT"]
[Termination "ENajer77 won by resignation"]

1. e4 {[%clk 0:10:01.9]} 1... c6 {[%clk 0:10:00.3]} 2. d4 {[%clk 0:09:58.7]}
2... d5 {[%clk 0:10:00.7]} 3. e5 {[%clk 0:09:59]} 3... Bf5 {[%clk 0:09:45.8]} 4.
Nf3 {[%clk 0:09:56.5]} 4... e6 {[%clk 0:09:46.3]} 5. Be2 {[%clk 0:09:56.8]} 5...
c5 {[%clk 0:09:44.5]} 6. Be3 {[%clk 0:09:48.3]} 6... Qb6 {[%clk 0:09:44.2]} 7.
Nc3 {[%clk 0:09:48.5]} 7... Nc6 {[%clk 0:09:44.7]} 8. Na4 {[%clk 0:09:47]} 8...
Qa5+ {[%clk 0:09:41.5]} 9. c3 {[%clk 0:09:47.6]} 9... c4 {[%clk 0:09:40.2]} 10.
Nh4 {[%clk 0:09:46.4]} 10... b5 {[%clk 0:09:02.9]} 11. Nc5 {[%clk 0:09:18.4]}
11... Bxc5 {[%clk 0:08:54.5]} 12. Nxf5 {[%clk 0:09:18.5]} 12... Bf8 {[%clk
0:08:01.7]} 13. Ng3 {[%clk 0:09:06]} 13... b4 {[%clk 0:07:19.6]} 14. Bd2 {[%clk
0:09:05]} 14... bxc3 {[%clk 0:07:19.9]} 15. bxc3 {[%clk 0:08:48.4]} 15... Ba3
{[%clk 0:07:19.3]} 16. Rb1 {[%clk 0:08:36.6]} 16... Nge7 {[%clk 0:07:18.4]} 17.
O-O {[%clk 0:08:35.4]} 17... O-O {[%clk 0:07:17.8]} 18. Nh5 {[%clk 0:06:51.5]}
18... Rab8 {[%clk 0:06:53.5]} 19. Qc2 {[%clk 0:06:50.7]} 19... Rxb1 {[%clk
0:06:16.5]} 20. Rxb1 {[%clk 0:06:49.3]} 20... Rb8 {[%clk 0:06:16.9]} 21. Rxb8+
{[%clk 0:06:45.5]} 21... Nxb8 {[%clk 0:06:18.8]} 22. Bh6 {[%clk 0:06:20.6]}
22... gxh6 {[%clk 0:04:36]} 23. Nf6+ {[%clk 0:06:19.5]} 23... Kf8 {[%clk
0:04:37.1]} 24. Qxh7 {[%clk 0:06:19.3]} 1-0